Cogmind - Beta 15 @@@ ROGUE MODE // 2025.07.05 @ 06:31:49 Player: puppuppit Result: Destroyed self with Mini Grenade Launcher Performance ------------- Evolutions (0) 0 Regions Visited (3) 600 Robots Destroyed (66) 330 Value Destroyed (1191) 1191 Prototype IDs (0) 0 Alien Tech Used (0) 0 Bonus (0) 0 TOTAL SCORE: 2121 Bonus ------- None Cogmind --------- Core Integrity 0/250 Matter 244/300 Energy 113/125 System Corruption 0% Temperature Cool (0) Movement Rolling (100) Location -7/Recycling Parts ------- > --- POWER (1) -------- Light Ion Engine > --- PROPULSION (2) --- Compact Wheel Compact Wheel > --- UTILITY (2) ------ Large Storage Unit Improved Terrain Scanner > --- WEAPON (2) ------- Mini Grenade Launcher Mini Grenade Launcher > --- INVENTORY (15) --- High-capacity Matter Pod (200) High-capacity Matter Pod (200) Subdweller Optics Weapon Cycler Weapon Cycler Makeshift System Shield Subdweller Beam Cannon Assault Rifle Assault Rifle Assault Rifle Assault Rifle Mini Grenade Launcher Mini Grenade Launcher Subdweller Shrapnel Launcher Peak State ------------ > --- POWER ------------ Light Ion Engine > --- PROPULSION ------- Light Treads Advanced Treads > --- UTILITY ---------- Large Storage Unit Improved Terrain Scanner > --- WEAPON ----------- Assault Rifle Assault Rifle > --- INVENTORY -------- High-capacity Matter Pod High-capacity Matter Pod Subdweller Optics Weapon Cycler Weapon Cycler Makeshift System Shield Subdweller Beam Cannon Assault Rifle Assault Rifle Assault Rifle Mini Grenade Launcher Mini Grenade Launcher Mini Grenade Launcher Mini Grenade Launcher Subdweller Shrapnel Launcher [Rating: 14] Favorites ----------- Power Backup Power I Engine Backup Power I Propulsion Light Treads Treads Light Treads Wheel Compact Wheel Utility Improved Terrain Scanner Device Improved Terrain Scanner Storage Large Storage Unit Weapon Assault Rifle Energy Gun EM Pulse Gun Ballistic Gun Assault Rifle Launcher Mini Grenade Launcher Special Weapon Plasma Cutter Build | -11 -10 -10 -7 ------- Run | Yrd Mat Sub Rec Slots Evolved . | . . . . Power . | . . . . Propulsion . | . . . . Utility . | . . . . Weapon . | . . . . Parts Attached 30 | 7 15 4 4 Power 4 | 1 3 . . Engine 4 | 1 3 . . Core . | . . . . Reactor . | . . . . Propulsion 6 | 2 1 . 3 Treads 4 | 2 1 . 1 Leg . | . . . . Wheel 2 | . . . 2 Hover . | . . . . Flight . | . . . . Utility 4 | 2 2 . . Device 1 | 1 . . . Storage 3 | 1 2 . . Processor . | . . . . Hackware . | . . . . Protection . | . . . . Artifact . | . . . . Weapon 16 | 2 9 4 1 Energy Gun 1 | 1 . . . Energy Cannon . | . . . . Ballistic Gun 8 | 1 6 1 . Ballistic Cannon . | . . . . Launcher 6 | . 2 3 1 Special Weapon 1 | . 1 . . Impact Weapon . | . . . . Slashing Weapon . | . . . . Piercing Weapon . | . . . . Special Melee Weapon . | . . . . Unidentified Prototypes . | . . . . Parts Lost 8 | . 5 3 . Power 3 | . 2 1 . Propulsion 2 | . 1 1 . Utility . | . . . . Weapon 3 | . 2 1 . Highest Loss Streak 1 | . 1 1 . To Critical Strikes . | . . . . Average Backups 10 | . 8 14 14 Power . | . . 1 . Propulsion . | . . . . Utility 3 | . 2 4 5 Weapon 6 | . 5 9 8 Tool/Special . | . . . . Unused Backups 11 | . 3 . 8 Power . | . . . . Propulsion . | . . . . Utility 9 | . 2 . 7 Weapon 1 | . . . 1 Tool/Special 1 | . 1 . . Average Slot Usage (%) 93 | . 93 96 90 Engine 10 | . 8 13 11 Treads 25 | . 27 25 15 Wheel 1 | . . . 7 Device 13 | . 13 14 14 Storage 14 | . 14 14 14 Energy Gun 1 | . 3 . . Ballistic Gun 16 | . 23 1 25 Launcher 8 | . . 26 1 Peak Build Rating 14 | 9 10 13 14 Average Rating 10 | 6 9 11 12 On Entrance 7 | . 9 10 9 Naked Turns . | . . . . Heaviest Build 28 | 12 28 26 28 Greatest Support 42 | 40 40 40 42 Greatest Overweight (x) 1 | . . 1 1 Average Overweight (x) . | . . . . Largest Inventory Capacity 15 | 8 15 15 15 Average Capacity 12 | 7 10 15 15 Most Carried 15 | 1 15 15 15 Average Carried 10 | . 8 14 14 Final Capacity 15 | 8 15 15 15 Final Carried 15 | 1 14 15 14 Class Distribution -------------------- 96% | Mutant 3% | Scavenger-Mutant Dominant Class ---------------- Mutant | -10/Materials Mutant | -10/Subcaves Mutant | -7/Recycling Resources | -11 -10 -10 -7 ----------- Run | Yrd Mat Sub Rec Matter Collected 1988 | 308 1193 145 342 Remotely . | . . . . Salvage Created 2128 | 178 1267 140 543 Parts 124 | 20 73 13 18 Haulers Intercepted 2 | . 2 . . Recyclers Shooed 9 | . 1 . 8 Parts Field Recycled . | . . . . Retrieved Matter . | . . . . Parts Self-Destructed 13 | . . 13 . Prevented . | . . . . Kills | -11 -10 -10 -7 ------- Run | Yrd Mat Sub Rec Combat Hostiles Destroyed 29 | . 20 9 . Guns 11 | . 11 . . Cannons 1 | . 1 . . AOE 17 | . 8 9 . Classes Destroyed 11 | 3 6 2 . Worker 11 | 2 9 . . Builder 4 | . 4 . . Tunneler 4 | 4 . . . Hauler 2 | . 2 . . Recycler 10 | 1 3 . 6 Operator 1 | . 1 . . Turret 2 | . . 2 . Watcher 3 | . 3 . . Swarmer 7 | . 3 4 . Grunt 17 | . 17 . . Subdweller 5 | . . 5 . Best Kill Streak 6 | 5 5 6 2 Combat Bots Only 4 | . 4 4 . Max Kills in Single Turn 3 | 1 3 3 1 Gunslinging . | . . . . Exploded 3 | . 2 3 . Melee . | . . . . Uniques/NPCs Destroyed . | . . . . Combat | -11 -10 -10 -7 -------- Run | Yrd Mat Sub Rec Hostile Shots Fired 161 | . 106 54 1 Missed 53 | . 34 19 . Hits 108 | . 72 35 1 Melee 1 | . . . 1 Projectile 107 | . 72 35 . Critical Strikes 1 | . . . 1 Damage Taken 1356 | . 845 447 64 Core 257 | . 170 59 28 Absorbed by Shields . | . . . . Regen/Repaired (Parts) 220 | . 220 . . Core Remaining (%) 100 | 100 . . . Volleys Fired 172 | 19 112 16 25 Largest 2 | 2 2 2 2 Hottest 60 | 60 60 60 60 Shots Fired 326 | 38 219 20 49 Gun 289 | 38 205 . 46 Cannon . | . . . . Launcher 31 | . 8 20 3 Special 6 | . 6 . . Kinetic 222 | 19 151 6 46 Thermal 6 | . 6 . . Explosive 25 | . 8 14 3 Electromagnetic 73 | 19 54 . . Robot Hit Streak 14 | 7 14 2 14 Robot Miss Streak 5 | 5 5 2 4 Penetration Max . | . . . . Secondary Targets 4 | . 4 . . Max Gunslinging Chain 1 | . 1 . . Shots Hit Robots 194 | 22 138 3 31 Core Hits 105 | 9 69 15 12 Critical Kills . | . . . . Critical Parts Destroyed . | . . . . Critical Strikes 4 | . 4 . . Corrupt 4 | . 4 . . Melee Attacks . | . . . . Impact . | . . . . Slashing . | . . . . Piercing . | . . . . Sneak Attacks . | . . . . Combat Hostiles . | . . . . Follow-up Attacks . | . . . . Damage Inflicted 4163 | 285 2435 922 521 Guns 2157 | 217 1551 . 389 Cannons . | . . . . Explosions 1956 | 68 834 922 132 Melee . | . . . . Ramming 3 | . 3 . . Kinetic 2043 | 83 1027 544 389 Thermal 503 | 68 435 . . Explosive 956 | . 446 378 132 Electromagnetic 658 | 134 524 . . Impact . | . . . . Slashing . | . . . . Piercing . | . . . . Highest Corruption . | . . . . Average Corruption . | . . . . Corruption Purged . | . . . . Corruption Blocked . | . . . . Overload Shots . | . . . . Overflow Damage 85 | . 6 79 . Projectiles . | . . . . Explosions 85 | . 6 79 . Melee . | . . . . Knockbacks . | . . . . Impact . | . . . . Kinetic . | . . . . Secondary . | . . . . Self-Inflicted Damage 166 | . 73 65 28 Shots 8 | . 3 4 1 Rammed . | . . . . Targets Rammed 1 | . 1 . . Kicked . | . . . . Crushed 1 | . 1 . . Highest Temperature 76 | 40 76 . . Average Temperature 25 | 17 28 . . Received Heat Transfer 540 | . 366 174 . Siege Activations . | . . . . Martial Activations . | . . . . Shielding Activations . | . . . . Robots Disrupted . | . . . . Combat Hostiles . | . . . . Robots Corrupted . | . . . . Combat Hostiles . | . . . . Parts Fried 2 | 1 1 . . Impact Corruptions . | . . . . Robots Melted . | . . . . Combat Hostiles . | . . . . Parts Melted . | . . . . Heat Transferred 698 | 50 648 . . Parts Sabotaged . | . . . . Parts Stolen . | . . . . Parts Stripped . | . . . . Power Chain Reactions 8 | 2 6 . . Alert | -11 -10 -10 -7 ------- Run | Yrd Mat Sub Rec Maximum Alert Level 1 | . 1 . . Low Security (%) 42 | 100 23 . 100 Level 1 57 | . 76 . . Level 2 . | . . . . Level 3 . | . . . . Level 4 . | . . . . Level 5 . | . . . . High Security . | . . . . Max Security . | . . . . Peak Influence 394 | 15 394 . 51 Initial 51 | . . . 51 Average 189 | 2 251 . 8 Influence Increases 1077 | 35 846 120 76 Destroy 0b10 Robot/C 520 | . 400 120 . Destroy 0b10 Robot/NC 180 | 35 110 . 35 Destroy Leader 90 | . 90 . . Successful Hack 24 | . 19 . 5 Select Force Hacks 60 | . 60 . . Disable Machine 105 | . 105 . . Destroy Structure 98 | . 62 . 36 Influence Decreases 1053 | 35 575 283 160 Entered New Map 188 | . . 131 57 Time Decay 815 | 35 525 152 103 Lost Part 50 | . 50 . . Squads Dispatched 5 | . 5 . . Investigation 4 | . 4 . . Extermination . | . . . . Reinforcement 1 | . 1 . . Assault . | . . . . Garrison . | . . . . Intercept . | . . . . Searches Triggered . | . . . . Construction Impeded . | . . . . Haulers Reinforced . | . . . . Active Scanning Responses . | . . . . Cargo Convoy Interrupts . | . . . . Stealth | -11 -10 -10 -7 --------- Run | Yrd Mat Sub Rec Distress Signals 2 | . 2 . . Communications Jammed . | . . . . Distress Signals . | . . . . Times Spotted 45 | . 33 11 1 Peak Tracking Total 6 | . 5 6 1 Tactical Retreats . | . . . . Traps | -11 -10 -10 -7 ------- Run | Yrd Mat Sub Rec Traps Triggered . | . . . . Indirectly . | . . . . Trap Hack Attempts . | . . . . Triggered . | . . . . Disarmed . | . . . . Reprogrammed . | . . . . Reused . | . . . . Traps Extracted . | . . . . Installed . | . . . . Triggered . | . . . . Machines | -11 -10 -10 -7 ---------- Run | Yrd Mat Sub Rec Machines Disabled 11 | . 7 4 . Max in Single Turn 4 | . 1 4 . Machines Repaired . | . . . . Machines Dismantled . | . . . . Machines Sabotaged . | . . . . Overloaded Fab Kills . | . . . . Hacking | -11 -10 -10 -7 --------- Run | Yrd Mat Sub Rec Machines Accessed 11 | . 10 . 1 Terminals 8 | . 7 . 1 Fabricators . | . . . . Repair Stations 1 | . 1 . . Recycling Units 2 | . 2 . . Scanalyzers . | . . . . Garrison Access . | . . . . Total Hacks 35 | . 31 . 4 Successful 18 | . 17 . 1 Failed 16 | . 13 . 3 Catastrophic 4 | . 3 . 1 Database Lockouts 1 | . 1 . . Manual 27 | . 23 . 4 Terminals 25 | . 21 . 4 Fabricators . | . . . . Repair Stations 7 | . 7 . . Recycling Units 3 | . 3 . . Scanalyzers . | . . . . Garrison Access . | . . . . Terminal Hacks 4 | . 4 . . Robot Analysis 4 | . 4 . . Fabricator Hacks . | . . . . Repair Station Hacks 7 | . 7 . . Scan Component 3 | . 3 . . Repair 3 | . 3 . . Refit 1 | . 1 . . Recycling Unit Hacks . | . . . . Scanalyzer . | . . . . Garrison Access Hacks . | . . . . Unauthorized Hacks 7 | . 6 . 1 Terminals 5 | . 4 . 1 Botnet 5 | . 4 . 1 Fabricators . | . . . . Repair Stations . | . . . . Recycling Units 2 | . 2 . . Tunnel 2 | . 2 . . Scanalyzers . | . . . . Garrison Access . | . . . . Data Cores Recovered . | . . . . Used . | . . . . Hacking Detections 9 | . 8 . 1 Full Trace Events 3 | . 3 . . Feedback Events . | . . . . Feedback Blocked . | . . . . Robot Schematics Acquired . | . . . . Robots Built . | . . . . Authchips . | . . . . Time . | . . . . Total Robot Build Rating . | . . . . Part Schematics Acquired . | . . . . Parts Built . | . . . . Authchips . | . . . . Time . | . . . . Total Part Build Rating . | . . . . Parts Repaired 3 | . 3 . . Time 90 | . 90 . . Parts Recycled . | . . . . Recycled Matter . | . . . . Retrieved Matter . | . . . . Retrieved Components . | . . . . Parts Scanalyzed . | . . . . Part Schematics Acquired . | . . . . Parts Damaged . | . . . . Bothacking | -11 -10 -10 -7 ------------ Run | Yrd Mat Sub Rec Used RIF Installer . | . . . . Robots Hacked . | . . . . Non-combat . | . . . . Combat . | . . . . Robot Hacks Applied . | . . . . Relay Couplers Released . | . . . . Fabnet Peak Effective % . | . . . . Robots Rewired . | . . . . Allies Hacked . | . . . . Hacks Repelled . | . . . . Allies | -11 -10 -10 -7 -------- Run | Yrd Mat Sub Rec Total Allies . | . . . . Largest Group . | . . . . Highest-Rated Group . | . . . . Highest-Rated Ally . | . . . . Total Orders . | . . . . Ally Attacks . | . . . . Total Damage . | . . . . Kills . | . . . . Allies Corrupted . | . . . . Allies Melted . | . . . . Intel | -11 -10 -10 -7 ------- Run | Yrd Mat Sub Rec Active Infowar (turns) 3446 | 42 1851 1077 476 Terrain 3446 | 42 1851 1077 476 Robot Analysis Total 4 | . 4 . . Derelict Logs Recovered . | . . . . Drone Launches . | . . . . Drone Recoveries . | . . . . Exploration | -11 -10 -10 -7 ------------- Run | Yrd Mat Sub Rec Turns Passed 3607 | 165 1889 1077 476 Spaces Moved 1794 | 68 888 581 257 Core 7 | 7 . . . Treads 1676 | 61 888 581 146 Legs . | . . . . Wheels 111 | . . . 111 Hover . | . . . . Flight . | . . . . Fastest Speed 50 | 50 160 160 100 Average Speed 161 | 148 160 168 151 Slowest Speed 240 | 160 160 240 240 Overloaded Moves . | . . . . Propulsion Burnouts . | . . . . Robots Hopped . | . . . . Potential Cave-ins . | . . . . Cave-ins Triggered . | . . . . Exploration Rate (%) 41 | 4 98 38 25 Regions Visited 3 Branch Regions 2 Pre-discovered Areas 3 | . 2 1 . Known Exits Taken . | . . . . Unknown Exits Taken 3 | 1 1 1 . Scrap Searched 2 | . . 2 . Spaces Dug 29 | . 7 22 . Terrain Destroyed 259 | 4 67 152 36 Melee . | . . . . Projectile . | . . . . AOE 259 | 4 67 152 36 Terrain Rammed . | . . . . Walls Destroyed . | . . . . Machines Disabled . | . . . . Actions | -11 -10 -10 -7 --------- Run | Yrd Mat Sub Rec Total 2193 | 94 1145 659 295 Wait 145 | . 94 51 . Move 1791 | 67 887 580 257 Hop . | . . . . Pick Up 26 | 1 19 4 2 Fast Attach 16 | 7 5 . 4 Attach 6 | . 3 1 2 Detach 1 | . 1 . . Swap 21 | . 15 5 1 Drop 14 | . 8 2 4 Fire 172 | 19 112 16 25 Melee . | . . . . Ram . | . . . . Kick . | . . . . Crush 1 | . 1 . . Escape Stasis . | . . . . Rewire . | . . . . Trap . | . . . . Miscellaneous . | . . . . Route ------- -11/Scrapyard -10/Materials (discovered 5 exits: [*Mat x3] / [*Min] / [*Sub]) -10/Subcaves -7/Recycling History --------- Turn | Location | Event 6 | -11/Scrapyard | Discovered new exit (range 14) 166 | -11/Scrapyard | Entered Materials 300 | -10/Materials | Build established: Mutant 477 | -10/Materials | Discovered new exit (range 12) 697 | -10/Materials | Discovered new exit (range 11) 909 | -10/Materials | Discovered new exit (range 11) 919 | -10/Materials | Central database locked down 1158 | -10/Materials | Core integrity fell below 50% 1217 | -10/Materials | Discovered new exit (range 16) 1504 | -10/Materials | Discovered new exit (range 15) 1564 | -10/Materials | Repaired Lgt. Treads 1591 | -10/Materials | Repaired Assault Rifle 1631 | -10/Materials | Repaired Imp. Terrain Scanner 2055 | -10/Materials | Entered Subcaves 2056 | -10/Subcaves | Approached by a straggling Scientist 2555 | -10/Subcaves | Ambushed by Subdwellers from Twisted Machinery 2807 | -10/Subcaves | Shifting Twisted Machinery released Mak. System Shield 2819 | -10/Subcaves | Shifting Twisted Machinery released Sub. Shrapnel Launcher 2849 | -10/Subcaves | Learned location of Zion (-6) 2849 | -10/Subcaves | Met a Zionite searching for "candidates" 2924 | -10/Subcaves | A swath of the cavern ceiling suddenly collapsed 3078 | -10/Subcaves | Core integrity fell below 20% 3096 | -10/Subcaves | Discovered new exit (range 16) 3132 | -10/Subcaves | Entered Recycling 3176 | -7/Recycling | Scanned before Scraplab entrance 3608 | -7/Recycling | Destroyed self with Mini Grenade Launcher Last Messages --------------- 03467_ Dropped Lgt. Treads. 03468_ Dropped Adv. Treads. 03468_ Acquired Lgt. Treads. 03472_ Dropped Lgt. Treads. 03473_ Acquired Com. Wheel. 03487_ Destroyed Com. Wheel. 03487_ R-06 Scavenger destroyed. 03490_ Acquired 89 matter. 03494_ Acquired 13 matter. 03498_ R-06 Scavenger destroyed. 03510_ Acquired 6 matter. 03521_ L-41 Fighter springs to life. 03545_ R-06 Scavenger collects Com. Wheel. 03577_ The unstable cave ceiling collapses. 03577_ Assault Rifle severed. 03585_ U-05 Engineer builds a Wall. 03589_ U-05 Engineer lays Concrete. 03593_ The unstable cave ceiling collapses. 03593_ U-05 Engineer lays Concrete. 03608_ R-06 Scavenger destroyed. Map ----- +----------------------------------------------------+ | ??????????????# # #?#??# #?????????? | | ??????????????# #????#######????????? | | ????????#?????######### ##???????????????????? | | ????????????#?#????#?## #???????????????????? | | ???????????#?## ###### #?#?##?#?##?? ??????? | | ?????????#???# # ####???#?????????????? | | ??????????#??# # !#??????????????????? | | ?????????????# # ###????#????? ?????? | | ?????????????# + ! #?##??#?????? ?????? | | ?????????????# # ###?#????????????? ??? | | ????????????## # ####?????????????????? | | ???????#?????# #?#??####?? ????????? | | ???????????#?# #?????#?????????????? | | ????????????########### u #########??#????????? | | ???????????#?##???????# = ##???????????? | | ??????????????#??????## = %##??????????? | | ??????????????????#??## * = ##?#?????????? | | ?????????????????????### % #????????????? | | ???????????##??????#??## =% #????????#???? | | ??????????????#???#???## l!#= ! #????????????? | | ????????????????#?#??## *%= #????????#???? | | ????????????#????#???## =# #??##????#???? | | ???????????????#??#??# #????????????? | | ???????????#??#???#??# #????????????? | | ???????????#?????#???## ! ##???????????? | | ???????????????#??#??### @ ##+######?#???????#?? | | ???????????????#??#???## ### #??????##????????? | | ????????????????#??????# #?# #????????????????? | | ???????????????????????# #?# #?##?????????????? | | ?????????????##??????#?# %#?# #?##?????????????? | | ???????????????????#?#?# #?# ###?????#??#?#???? | | ????????????????#??###?# ### #????????????????? | | ?????????????##???????## ### ##???#???????????? | | ???????????#????????#?# ## #????#?#??#??????? | | ?????????????????#????# #?#?#?#???#??????? | | ??????????????????#??## T% ####?????##?????????? | | ??????????????????#???# #?#?????????????????? | | ????????????#???#?????# #???????#???????????? | | ??????????????????#######+#######???#???????????? | | ???????????????????# ! #?#?????????????? | | ?????????????#??#??# ! ! ###?????#???????? | | ????????????? ?????+ ! / #???????????????? | | ???????????????#???# ! #???????????????? | | ???????????????????# * #?????#?????????? | | ???????????????????# #???????????????? | | ???????????????????# * #???????????????? | | ???????????????????# / #?#?????????????? | | ???????????????????# #???????????????? | | ???????????????????# #???????????????? | | ???????????????????# ! #???????????????? | +----------------------------------------------------+ Best States ------------- Heat Dissipation 25 Energy Generation 10 Energy Capacity 125 Matter Stores 300 Matter Capacity 300 Sight Range 16 Terrain Scan Range 16 Terrain Scan Density 10 Evasion (%) 40 Recoil Reduction 2 Item Schematics ----------------- None Robot Schematics ------------------ None Fabricated ------------ Nothing Repaired ---------- Lgt. Treads | 3% | -10/Materials Assault Rifle | 29% | -10/Materials Imp. Terrain Scanner | 36% | -10/Materials Alien Tech Used ----------------- None Achievements -------------- None Challenges ------------ None Game ------ Seed ExoskeletonChargePod Manual? 0 Play Time 00:18:13 Cumulative 371.3 hours Start 2025.07.05 @ 06:15:33 End 2025.07.05 @ 06:31:49 Sessions 1 Manual Loads 0 Difficulty Rogue Special Mode None Game No. 217 Rogue 217 Adventurer 0 Explorer 0 Win Type - Total 4 Types 2/0/1/1/0/0/0/0/0/0 Lore% 84 Gallery% 73 Achievement% 67 Wizard Run 0 Options --------- Layout 2 ASCII 0 Keyboard 1 Movement Vi Keybinds 0 Fullscreen 2 Font 16/Tamsyn Map View 55x47 Zoom Use 0% Tactical HUD 1 Map Filters NONE Filters NONE Steam 0 RUN: 4516a29d-711d-47f6-858e-1141f69a83a4